bitfinex/quotes_SOLUSD_20250507
["timestamp","ask_amount","ask_price","bid_price","bid_amount"]
[1746656664505,18.64964886,147.63,147.57,11.31019134]
[1746656664679,11.31019134,147.62,147.57,11.31019134]
[1746656665082,11.31019134,147.62,147.58,11.31019134]
[1746656665504,11.31019134,147.62,147.57,11.31019134]
[1746656665505,6.77460876,147.61,147.57,11.31019134]
[1746656665702,6.77460876,147.61,147.59,11.31019134]
[1746656667814,6.77369098,147.63,147.59,11.31019134]
[1746656668529,6.77369098,147.63,147.6,11.31019134]
[1746656671330,6.77369098,147.63,147.61,11.31019134]
[1746656672327,23.70637832,147.64,147.61,11.31019134]
[1746656672627,23.70637832,147.64,147.6,11.31019134]
[1746656673013,35.01656966,147.64,147.6,11.31019134]
[1746656674327,35.01656966,147.64,147.58,1.5056]
[1746656674533,35.01656966,147.64,147.59,11.31019134]
[1746656674900,23.70637832,147.64,147.59,11.31019134]
[1746656675101,23.70637832,147.64,147.58,1.5056]
[1746656675102,23.70637832,147.64,147.6,11.31019134]
[1746656679633,28.24333748,147.64,147.6,11.31019134]
[1746656682033,35.01656966,147.64,147.6,11.31019134]
[1746656682625,35.01656966,147.64,147.59,11.31019134]
[1746656685327,35.01656966,147.64,147.6,11.31019134]
[1746656689230,6.77323218,147.64,147.63,11.31019134]
[1746656689741,6.77323218,147.64,147.62,11.31019134]
[1746656691234,23.70470707,147.65,147.62,11.31019134]
[1746656695533,35.01489841,147.65,147.59,0.14216157]
[1746656695831,11.31019134,147.63,147.59,11.31019134]
[1746656696642,23.70842818,147.63,147.6,11.31019134]
[1746656698435,23.70842818,147.63,147.59,11.31019134]
[1746656698733,11.31019134,147.62,147.58,12.81579134]
[1746656698909,11.31019134,147.62,147.57,75.8]
[1746656698910,11.31019134,147.61,147.57,11.31019134]
[1746656699234,11.31019134,147.62,147.57,11.31019134]
[1746656699412,11.31019134,147.62,147.58,11.31019134]
[1746656700841,23.71113067,147.61,147.58,11.31019134]
[1746656701023,35.02132201,147.61,147.57,11.31019134]
[1746656701222,23.71113067,147.61,147.58,11.31019134]
[1746656704839,23.71113067,147.61,147.59,11.31019134]
[1746656707133,16.93652191,147.61,147.55,101.94216157]
[1746656707328,16.93652191,147.61,147.59,11.31019134]
[1746656707524,16.93652191,147.61,147.58,11.31019134]
[1746656708120,16.93652191,147.61,147.59,11.31019134]
[1746656709742,23.70791844,147.63,147.59,11.31019134]
[1746656709955,23.70791844,147.63,147.61,11.31019134]
[1746656710448,6.77369098,147.63,147.62,11.31019134]
[1746656712720,28.24185125,147.66,147.62,11.31019134]
[1746656713317,16.93165991,147.66,147.62,11.31019134]
[1746656713518,28.24185125,147.66,147.62,11.31019134]
[1746656714342,28.24185125,147.66,147.59,77.4338]
[1746656714343,11.31019134,147.65,147.61,11.31019134]
[1746656715019,6.77323218,147.64,147.61,11.31019134]
[1746656718132,6.77323218,147.64,147.62,11.31019134]
[1746656720138,6.77277345,147.65,147.62,11.31019134]
[1746656721946,23.70470707,147.65,147.62,11.31019134]
[1746656722242,11.31019134,147.65,147.61,11.31019134]
[1746656722943,11.31019134,147.64,147.6,11.31019134]
[1746656723155,57.56077739,147.67,147.61,11.31019134]
[1746656723445,11.31019134,147.65,147.61,11.31019134]
[1746656724244,6.77323218,147.64,147.61,11.31019134]
[1746656733556,23.70631264,147.64,147.61,11.31019134]
[1746656733851,35.01650398,147.64,147.6,11.45235291]
[1746656734729,23.70631264,147.64,147.6,11.45235291]
[1746656735858,23.70631264,147.64,147.6,7.38521359]
[1746656736550,30.94936466,147.64,147.59,84.67685202]
[1746656736854,7.24305202,147.63,147.59,8.87685202]
[1746656737852,35.0272412,147.63,147.59,12.95312276]
[1746656738257,23.70791844,147.63,147.6,11.31932276]
[1746656738633,6.77369098,147.63,147.61,11.31932276]
[1746656740156,23.70477216,147.65,147.61,11.31932276]
[1746656740545,35.02409492,147.65,147.61,11.31932276]
[1746656740745,23.70477216,147.65,147.62,11.31932276]
[1746656741453,6.77277345,147.65,147.63,11.31932276]
[1746656741636,6.77277345,147.65,147.6,82.00896157]
[1746656741637,6.77185616,147.67,147.64,11.31932276]
[1746656741846,6.77185616,147.67,147.65,11.31932276]
[1746656742049,6.77185616,147.67,147.66,11.31932276]
[1746656742246,6.77093912,147.69,147.66,11.31932276]
[1746656742847,18.09026188,147.69,147.65,11.31932276]
[1746656744958,18.09026188,147.69,147.66,11.31932276]
[1746656745149,6.77093912,147.69,147.66,11.31932276]
[1746656752464,6.77093912,147.69,147.65,11.31932276]
[1746656754862,11.31932276,147.69,147.65,11.31932276]
[1746656755572,16.92620506,147.7,147.65,11.31932276]
[1746656755784,1.5928,147.78,147.67,0.14216157]
[1746656755947,23.68545712,147.77,147.68,26.0]
[1746656756148,23.68545712,147.77,147.72,11.31932276]
[1746656756479,35.00477988,147.77,147.72,11.31932276]
[1746656756976,11.31932276,147.76,147.72,11.31932276]
[1746656757154,23.68545712,147.77,147.72,11.31932276]
[1746656757350,11.31932276,147.76,147.72,11.31932276]
[1746656758082,35.00477988,147.77,147.72,11.31932276]
[1746656758278,11.31932276,147.76,147.72,11.31932276]
[1746656758773,11.31932276,147.76,147.69,11.46148433]
[1746656758774,11.31932276,147.73,147.69,11.46148433]
[1746656759652,6.76956404,147.72,147.69,0.14216157]
[1746656759852,6.76956404,147.72,147.68,37.31932276]
[1746656760074,23.69347414,147.72,147.68,37.31932276]
[1746656761476,18.0888868,147.72,147.68,37.31932276]
[1746656761707,18.0888868,147.72,147.68,11.31932276]
[1746656766569,11.31932276,147.73,147.68,11.31932276]
[1746656767164,11.31932276,147.73,147.69,11.31932276]
[1746656767364,11.31932276,147.72,147.69,11.31932276]
[1746656768492,11.31932276,147.73,147.69,11.31932276]
[1746656768661,18.0888868,147.72,147.67,0.14216157]
[1746656768979,11.31932276,147.71,147.66,27.5367]
[1746656769288,11.31932276,147.7,147.66,38.85602276]
[1746656769487,11.31932276,147.7,147.66,27.5367]
[1746656769786,11.31932276,147.7,147.66,38.85602276]
[1746656769967,6.7704807,147.7,147.67,11.31932276]
[1746656770782,6.7704807,147.7,147.68,11.31932276]
[1746656771288,18.0893451,147.71,147.66,27.5367]
[1746656771585,18.0893451,147.71,147.67,11.31932276]
[1746656773481,18.0893451,147.71,147.65,75.94216157]
[1746656773688,18.0893451,147.71,147.66,11.31932276]
[1746656773864,18.0893451,147.71,147.67,11.31932276]
[1746656774881,35.01440095,147.71,147.67,11.31932276]
[1746656776289,23.69507819,147.71,147.68,11.31932276]
[1746656779288,23.69507819,147.71,147.67,11.31932276]
[1746656781590,35.01440095,147.71,147.67,11.31932276]
[1746656785396,35.01440095,147.71,147.65,0.14216157]
[1746656785692,35.01440095,147.71,147.67,11.31932276]
[1746656785880,30.93149973,147.71,147.67,7.23642154]
[1746656786270,23.69507819,147.71,147.67,7.23642154]
[1746656786480,23.69507819,147.71,147.68,7.23642154]
[1746656787691,16.92505585,147.71,147.68,7.23642154]
[1746656788700,23.69507819,147.71,147.67,7.23642154]
[1746656790206,23.69507819,147.71,147.68,7.23642154]
[1746656792027,23.69507819,147.71,147.65,0.14216157]
[1746656792309,30.93149973,147.71,147.67,7.23642154]
[1746656793915,30.93149973,147.71,147.65,0.14216157]
[1746656794285,30.93149973,147.71,147.66,7.23642154]
[1746656794490,30.93149973,147.71,147.67,7.23642154]
[1746656796115,30.93149973,147.71,147.65,0.14216157]
[1746656796298,30.93149973,147.71,147.67,7.23642154]
[1746656800203,7.23642154,147.72,147.67,7.23642154]
[1746656800601,7.23642154,147.72,147.68,7.23642154]
[1746656802708,6.77002234,147.71,147.68,7.23642154]
[1746656804806,23.69507819,147.71,147.68,7.23642154]
[1746656805014,23.69507819,147.71,147.65,0.14216157]
[1746656805015,23.69507819,147.71,147.67,7.23642154]
[1746656809415,30.93149973,147.71,147.67,7.23642154]
[1746656810191,23.69507819,147.71,147.67,7.23642154]
[1746656810393,23.69507819,147.71,147.68,7.23642154]
[1746656811405,23.69507819,147.71,147.69,7.23642154]
[1746656811406,16.92505585,147.71,147.69,7.23642154]
[1746656819125,23.69507819,147.71,147.68,7.23642154]
[1746656821333,30.93149973,147.71,147.67,7.23642154]
[1746656825735,23.69507819,147.71,147.68,7.23642154]
[1746656827634,23.69507819,147.71,147.67,7.23642154]
[1746656829105,23.69507819,147.71,147.68,7.23642154]
[1746656830119,23.69507819,147.71,147.69,7.23642154]
[1746656830310,52.49385631,147.74,147.7,7.23642154]
[1746656830311,6.7691058,147.73,147.7,7.23642154]
[1746656830628,6.7691058,147.73,147.72,7.23642154]
[1746656832935,6.7681895,147.75,147.72,7.23642154]
[1746656833136,6.7681895,147.75,147.73,7.23642154]
[1746656835243,6.7681895,147.75,147.72,7.23642154]
[1746656836050,6.7681895,147.75,147.73,7.23642154]
[1746656836635,30.92372379,147.76,147.72,7.23642154]
[1746656838146,23.68730225,147.76,147.73,7.23642154]
[1746656838645,30.92372379,147.76,147.72,7.23642154]
[1746656840149,23.68730225,147.76,147.73,7.23642154]
[1746656841435,23.68730225,147.76,147.74,7.23642154]
[1746656841631,23.68730225,147.76,147.73,7.23642154]
[1746656842748,16.91670222,147.79,147.75,7.23642154]
[1746656843048,6.76544212,147.81,147.78,7.23642154]
[1746656843466,6.76544212,147.81,147.77,7.23642154]
[1746656843630,25.8860704,147.8,147.73,75.8]
[1746656843837,7.23642154,147.78,147.72,1.5764]
[1746656844029,18.64964886,147.8,147.72,1.5764]
[1746656844030,7.23642154,147.77,147.72,1.5764]
[1746656844549,7.23642154,147.77,147.73,7.23642154]
[1746656845226,7.23642154,147.77,147.72,8.81282154]
[1746656845422,30.92348163,147.76,147.72,7.23642154]
[1746656847342,7.23642154,147.75,147.71,7.23642154]
[1746656848857,7.23642154,147.74,147.68,27.6124]
[1746656849044,7.23642154,147.74,147.7,7.23642154]
[1746656849853,23.6918703,147.73,147.69,7.23642154]
[1746656850057,30.92829184,147.73,147.69,7.23642154]
[1746656850557,30.92829184,147.73,147.68,8.84882154]
[1746656851245,30.92829184,147.73,147.69,7.23642154]
[1746656851780,23.6918703,147.73,147.69,7.23642154]
[1746656851961,7.23642154,147.73,147.69,7.23642154]
[1746656854259,6.76956404,147.72,147.69,7.23642154]
[1746656855133,23.69347414,147.72,147.69,7.23642154]
[1746656859157,23.69347414,147.72,147.7,7.23642154]
[1746656859858,6.76956404,147.72,147.71,7.23642154]
[1746656860037,23.68977504,147.75,147.71,7.23642154]
[1746656860236,23.68977504,147.75,147.72,7.23642154]
[1746656862361,30.92619658,147.75,147.71,7.23642154]
[1746656865563,30.92619658,147.75,147.69,0.14216157]
[1746656865753,23.6918703,147.73,147.7,7.23642154]
[1746656866859,23.6918703,147.73,147.68,77.4124]
[1746656867066,23.6918703,147.73,147.69,7.23642154]
[1746656867368,30.92829184,147.73,147.69,7.23642154]
[1746656867576,7.23642154,147.72,147.68,8.84882154]
[1746656867947,23.69507819,147.71,147.68,8.84882154]
[1746656869775,23.69507819,147.71,147.68,7.23642154]
[1746656869969,30.93149973,147.71,147.67,83.03642154]
[1746656870476,30.93149973,147.71,147.67,7.23642154]
[1746656872076,7.23642154,147.72,147.67,7.23642154]
[1746656872772,7.23642154,147.72,147.68,7.23642154]
[1746656873178,57.52961081,147.75,147.69,7.23642154]
[1746656873345,7.23642154,147.73,147.69,7.23642154]
[1746656873548,57.52961081,147.75,147.68,7.23642154]
[1746656873754,7.23642154,147.72,147.68,7.23642154]
[1746656874153,23.69507819,147.71,147.68,7.23642154]
[1746656875374,23.69507819,147.71,147.69,7.23642154]
[1746656876177,16.92505585,147.71,147.69,7.23642154]
[1746656877373,57.52961081,147.75,147.69,7.23642154]
[1746656877564,7.23642154,147.74,147.7,7.23642154]
[1746656878481,7.23642154,147.73,147.69,7.23642154]
[1746656878657,7.23642154,147.71,147.66,0.14216157]
[1746656878981,7.23642154,147.71,147.67,7.23642154]
[1746656879680,6.7704807,147.7,147.67,7.23642154]
[1746656881982,23.69601329,147.71,147.68,7.23642154]
[1746656882278,23.69601329,147.71,147.66,0.14216157]
[1746656882482,23.69601329,147.71,147.68,7.23642154]
[1746656887504,23.69601329,147.71,147.69,7.23642154]
[1746656888288,6.76956404,147.72,147.7,7.23642154]
[1746656888470,6.76956404,147.72,147.71,7.23642154]
[1746656889312,6.76864762,147.74,147.71,7.23642154]
[1746656889596,6.76864762,147.74,147.73,7.23642154]
[1746656890193,16.9206012,147.75,147.73,7.23642154]
[1746656890684,16.9206012,147.75,147.69,75.94216157]
[1746656890685,16.9206012,147.75,147.74,7.23642154]
[1746656891796,16.9206012,147.75,147.73,7.23642154]
[1746656897574,16.9206012,147.75,147.7,75.94216157]
[1746656897575,16.9206012,147.75,147.74,7.23642154]
[1746656898299,16.9206012,147.75,147.73,7.23642154]
[1746656899197,23.68545712,147.77,147.73,7.23642154]
[1746656902298,30.92187866,147.77,147.73,7.23642154]
[1746656902504,7.23642154,147.76,147.72,7.23642154]
[1746656904605,23.68866327,147.75,147.72,7.23642154]
[1746656908206,23.68866327,147.75,147.73,7.23642154]
[1746656910010,16.92047377,147.75,147.73,7.23642154]
[1746656914005,16.92047377,147.75,147.72,7.23642154]
[1746656915001,23.68866327,147.75,147.72,7.23642154]
[1746656916013,30.92508481,147.75,147.7,75.94216157]
[1746656916215,23.68866327,147.75,147.71,7.23642154]
[1746656916818,23.68866327,147.75,147.72,7.23642154]
[1746656919217,16.92047377,147.75,147.72,7.23642154]
[1746656919430,16.92047377,147.75,147.73,7.23642154]
[1746656919603,16.92047377,147.75,147.74,7.23642154]
[1746656923119,23.68545712,147.77,147.74,7.23642154]
[1746656925418,30.92187866,147.77,147.73,7.23642154]
[1746656926025,7.23642154,147.76,147.72,7.23642154]
[1746656927528,23.68866327,147.75,147.72,7.23642154]
[1746656929525,41.07278886,147.77,147.72,7.23642154]
[1746656931731,23.68866327,147.75,147.72,7.23642154]
[1746656940910,23.68866327,147.75,147.71,7.23642154]
[1746656941310,23.68866327,147.75,147.72,7.23642154]
[1746656942623,16.92047377,147.75,147.72,7.23642154]
[1746656946934,16.92047377,147.75,147.71,7.23642154]
[1746656947125,24.15689531,147.75,147.7,83.03642154]
[1746656947321,24.15689531,147.75,147.7,7.23642154]
[1746656947632,16.92047377,147.75,147.71,7.23642154]
[1746656948129,16.92047377,147.75,147.68,77.52496157]
[1746656948130,16.92047377,147.75,147.72,7.23642154]
[1746656948925,6.76773145,147.76,147.72,7.23642154]
[1746656954838,7.23642154,147.74,147.69,75.94216157]
[1746656955139,23.68706009,147.76,147.69,75.8]
[1746656955140,7.23642154,147.73,147.69,75.8]
[1746656955341,7.23642154,147.73,147.69,83.03642154]
[1746656955726,7.23642154,147.74,147.7,7.37858311]
[1746656955927,7.23642154,147.75,147.7,7.37858311]
[1746656956246,30.92348163,147.76,147.71,7.23642154]
[1746656957035,7.23642154,147.75,147.7,7.37858311]
[1746656957535,7.23642154,147.75,147.7,83.17858311]
[1746656958449,30.92348163,147.76,147.7,83.17858311]
[1746656959244,30.92348163,147.76,147.7,75.94216157]
[1746656959553,7.23642154,147.75,147.7,75.94216157]
[1746656959724,7.23642154,147.75,147.7,83.17858311]
[1746656959925,7.23642154,147.75,147.7,75.8]
[1746656960129,7.23642154,147.74,147.7,75.8]
[1746656960430,7.23642154,147.75,147.7,83.03642154]
[1746656961656,6.76864762,147.74,147.7,83.03642154]
[1746656962152,23.69026668,147.74,147.7,83.03642154]
[1746656963660,23.69026668,147.74,147.7,7.23642154]
[1746656965157,23.69026668,147.74,147.71,7.23642154]
[1746656965624,23.69026668,147.74,147.7,7.23642154]
[1746656967527,23.69026668,147.74,147.71,7.23642154]
[1746656973368,30.92668822,147.74,147.7,7.23642154]
[1746656975440,23.69026668,147.74,147.71,7.23642154]
[1746656979377,23.69026668,147.74,147.7,7.23642154]
[1746656979671,42.33670895,147.76,147.7,7.23642154]
[1746656979847,7.23642154,147.73,147.69,7.23642154]
[1746656980050,7.23642154,147.71,147.66,7.23642154]
[1746656980237,7.23642154,147.7,147.66,7.23642154]
[1746656980441,7.23642154,147.71,147.66,7.23642154]
[1746656981359,23.69668246,147.7,147.67,7.23642154]
[1746656982376,6.7704807,147.7,147.69,7.23642154]
[1746656982541,6.7704807,147.7,147.68,7.23642154]
[1746656983571,6.77002234,147.71,147.68,7.23642154]
[1746656987875,6.77002234,147.71,147.64,113.67375436]
[1746656988181,6.77002234,147.71,147.68,7.23642154]
[1746656988976,7.23642154,147.71,147.67,7.23642154]
[1746656990570,6.7704807,147.7,147.67,7.23642154]
[1746656992157,6.7704807,147.7,147.65,0.14216157]
[1746656992356,6.7704807,147.7,147.67,7.23642154]
[1746656999890,6.7704807,147.7,147.65,0.14216157]
[1746657000083,30.933104,147.7,147.65,0.14216157]
[1746657000388,30.933104,147.7,147.66,7.23642154]
[1746657001081,30.933104,147.7,147.67,7.23642154]
[1746657001290,6.7704807,147.7,147.69,7.23642154]
[1746657001758,6.76956404,147.72,147.69,7.23642154]
[1746657004885,23.69347414,147.72,147.68,7.23642154]
[1746657005092,30.92989568,147.72,147.68,7.23642154]
[1746657006781,23.69347414,147.72,147.68,7.23642154]
[1746657009437,23.69347414,147.72,147.69,7.23642154]
[1746657009601,23.69347414,147.72,147.68,7.23642154]
[1746657010399,6.76956404,147.72,147.7,7.23642154]
[1746657011092,6.76864762,147.74,147.7,7.23642154]
[1746657011492,6.76864762,147.74,147.71,7.23642154]
[1746657012409,6.76864762,147.74,147.7,7.23642154]
[1746657016202,7.23642154,147.74,147.7,7.23642154]
[1746657016392,7.23642154,147.73,147.68,84.60822154]
[1746657016799,7.23642154,147.73,147.69,7.23642154]
[1746657018408,7.23642154,147.73,147.68,77.3718]
[1746657018409,6.76956404,147.72,147.68,77.3718]
[1746657018589,6.76956404,147.72,147.68,75.8]
[1746657018789,7.23642154,147.71,147.65,0.14216157]
[1746657018989,7.23642154,147.71,147.67,7.23642154]
[1746657019886,30.92989568,147.72,147.67,7.23642154]
[1746657020103,30.92989568,147.72,147.68,7.23642154]
[1746657020311,23.69347414,147.72,147.7,7.23642154]
[1746657020608,6.7691058,147.73,147.71,7.23642154]
[1746657021284,6.7691058,147.73,147.7,7.23642154]
[1746657021497,6.7691058,147.73,147.69,7.23642154]
[1746657022606,23.6918703,147.73,147.69,7.23642154]
[1746657025008,30.92829184,147.73,147.69,7.23642154]
[1746657025809,30.92829184,147.73,147.68,7.23642154]
[1746657032006,23.6918703,147.73,147.69,7.23642154]
[1746657032208,6.7691058,147.73,147.71,7.23642154]
[1746657033514,23.68889546,147.75,147.71,7.23642154]
[1746657034017,30.925317,147.75,147.71,7.23642154]
[1746657034315,30.925317,147.75,147.69,0.14216157]
[1746657034498,30.925317,147.75,147.71,7.23642154]
[1746657034906,7.23642154,147.73,147.69,7.23642154]
[1746657035411,6.76956404,147.72,147.69,7.23642154]
[1746657037614,24.1590031,147.74,147.7,7.23642154]
[1746657038915,30.92765072,147.74,147.7,7.23642154]
[1746657039315,7.23642154,147.73,147.68,7.8329]
[1746657039514,7.23642154,147.73,147.68,1.665]
[1746657039709,7.23642154,147.73,147.68,8.90142154]
[1746657039914,30.92765072,147.74,147.69,7.23642154]
[1746657040591,7.23642154,147.72,147.67,75.94216157]
[1746657040909,7.23642154,147.72,147.68,7.23642154]
[1746657041110,7.23642154,147.73,147.68,7.23642154]
[1746657043120,6.76956404,147.72,147.68,7.23642154]
[1746657045521,16.91943612,147.76,147.71,7.23642154]
[1746657045703,25.8860704,147.75,147.7,7.23642154]
[1746657046728,6.76864762,147.74,147.7,7.23642154]
[1746657047524,14.00506916,147.74,147.68,26.0]
[1746657047721,7.23642154,147.73,147.69,7.23642154]
[1746657049026,6.76956404,147.72,147.69,7.23642154]
[1746657049325,6.76956404,147.72,147.68,26.0]
[1746657049326,6.76956404,147.72,147.68,33.23642154]
[1746657049720,6.76956404,147.72,147.68,26.0]
[1746657050126,6.76956404,147.72,147.68,33.23642154]
[1746657051241,6.76956404,147.72,147.69,7.23642154]
[1746657053434,23.69026668,147.74,147.69,7.23642154]
[1746657053737,30.92668822,147.74,147.69,7.23642154]
[1746657053918,7.23642154,147.72,147.67,0.14216157]
[1746657054120,7.23642154,147.72,147.68,7.23642154]
[1746657054842,6.77002234,147.71,147.68,7.23642154]
[1746657057437,6.77002234,147.71,147.69,7.23642154]
[1746657059472,16.92397208,147.72,147.69,7.23642154]
[1746657059473,23.69353612,147.72,147.69,7.23642154]
[1746657060338,30.92995766,147.72,147.67,7.37858311]
[1746657061224,30.92995766,147.72,147.68,7.23642154]
[1746657062842,23.69026668,147.74,147.7,7.23642154]
[1746657063020,23.69026668,147.74,147.71,7.23642154]
[1746657063340,23.69026668,147.74,147.73,7.23642154]
[1746657063341,6.76864762,147.74,147.73,7.23642154]
[1746657063720,6.76864762,147.74,147.73,11.29654665]
[1746657064643,23.68578863,147.77,147.73,11.29654665]
[1746657065636,6.76727346,147.77,147.75,11.29654665]
[1746657067338,23.68234573,147.79,147.75,11.29654665]
[1746657067542,23.68234573,147.79,147.76,11.29654665]
[1746657067918,23.68234573,147.79,147.75,11.29654665]
[1746657068520,34.97889238,147.79,147.75,11.29654665]
[1746657072251,23.68234573,147.79,147.75,11.29654665]
[1746657072450,34.97889238,147.79,147.75,11.29654665]
[1746657074522,23.68234573,147.79,147.76,11.29654665]
[1746657081153,34.97889238,147.79,147.75,11.29654665]
[1746657081349,23.68234573,147.79,147.75,11.29654665]
[1746657081536,34.97889238,147.79,147.75,11.29654665]
[1746657082155,23.68234573,147.79,147.75,11.29654665]
[1746657082356,23.68234573,147.79,147.76,11.29654665]
[1746657083757,30.91014684,147.79,147.75,7.22780111]
[1746657088855,23.68234573,147.79,147.76,7.22780111]
[1746657091336,30.91014684,147.79,147.75,7.22780111]
[1746657094262,16.91598807,147.79,147.75,7.22780111]
[1746657094562,16.91598807,147.79,147.76,7.22780111]
[1746657095660,23.68234573,147.79,147.76,7.22780111]
[1746657095866,23.68234573,147.79,147.77,7.22780111]
[1746657097363,16.91598807,147.79,147.77,7.22780111]
[1746657098672,23.68234573,147.79,147.76,7.22780111]
[1746657100271,23.68234573,147.79,147.75,7.22780111]
[1746657101447,23.68234573,147.79,147.76,7.22780111]
[1746657106471,16.91598807,147.79,147.77,7.22780111]
[1746657108383,57.50831606,147.81,147.77,7.22780111]
[1746657108880,64.73611717,147.81,147.77,7.22780111]
[1746657112391,30.90684853,147.81,147.77,7.22780111]
[1746657113989,7.22780111,147.8,147.76,7.22780111]
[1746657114365,6.76635766,147.79,147.76,7.22780111]
[1746657117274,18.64964886,147.83,147.78,33.22780111]
[1746657117275,16.91141021,147.83,147.78,33.22780111]
[1746657117478,16.91141021,147.83,147.79,7.22780111]
[1746657118888,23.67593703,147.83,147.79,7.22780111]
[1746657120787,23.67593703,147.83,147.81,7.22780111]
[1746657121181,23.67593703,147.83,147.8,7.22780111]
[1746657122868,16.91141021,147.83,147.8,7.22780111]
[1746657125087,23.67593703,147.83,147.8,7.22780111]
[1746657127083,6.76452682,147.83,147.81,7.22780111]
[1746657127294,13.99232793,147.83,147.79,7.36996268]
[1746657127490,13.99232793,147.83,147.79,0.14216157]
[1746657127685,30.90364498,147.83,147.79,0.14216157]
[1746657127994,30.90364498,147.83,147.79,7.36996268]
[1746657128892,23.67584387,147.83,147.8,7.22780111]
[1746657129389,23.67584387,147.83,147.78,101.8]
[1746657129390,7.22780111,147.82,147.78,109.02780111]
[1746657129589,30.90364498,147.83,147.79,7.22780111]
[1746657130394,7.22780111,147.84,147.8,7.22780111]
[1746657130805,30.89884127,147.86,147.81,7.22780111]
[1746657130976,30.89884127,147.86,147.82,7.22780111]
[1746657131809,23.67104016,147.86,147.82,7.22780111]
[1746657131967,6.76315433,147.86,147.83,7.22780111]
[1746657132172,6.76315433,147.86,147.84,7.22780111]
[1746657132497,6.76269696,147.87,147.83,7.22780111]
[1746657134172,13.99049807,147.87,147.83,7.22780111]
[1746657134796,30.89724047,147.87,147.83,7.22780111]
[1746657137104,7.22780111,147.86,147.83,7.22780111]
[1746657137310,7.22780111,147.86,147.82,0.14216157]
[1746657137605,7.22780111,147.86,147.83,7.22780111]
[1746657137971,7.22780111,147.84,147.81,75.8]
[1746657138191,7.22780111,147.84,147.8,7.22780111]
[1746657138382,6.76452682,147.83,147.8,7.22780111]
[1746657139375,6.76452682,147.83,147.79,0.14216157]
[1746657139682,6.76452682,147.83,147.8,7.22780111]
[1746657140275,7.22780111,147.85,147.8,7.22780111]
[1746657140475,7.22780111,147.85,147.81,7.22780111]
[1746657142704,13.77910111,147.82,147.74,5.27037582]
[1746657142993,18.64964886,147.79,147.74,5.27037582]
[1746657143193,18.64964886,147.76,147.73,10.41710951]
[1746657143385,7.22780111,147.76,147.73,10.41710951]
[1746657143592,25.87744997,147.79,147.73,17.64491062]
[1746657143903,7.22780111,147.76,147.73,10.41710951]
[1746657144270,7.22780111,147.77,147.73,10.41710951]
[1746657144975,23.68706009,147.76,147.73,10.41710951]
[1746657146501,34.98652291,147.76,147.72,11.29946282]
[1746657148208,11.29946282,147.75,147.7,11.29946282]
[1746657149003,23.69026668,147.74,147.7,11.29946282]
[1746657149384,11.29946282,147.73,147.69,16.72]
[1746657149584,11.29946282,147.73,147.69,28.01946282]
[1746657149790,11.29946282,147.73,147.69,16.72]
[1746657150402,11.29946282,147.73,147.69,28.01946282]
[1746657151400,23.69347414,147.72,147.69,28.01946282]
[1746657151593,23.69347414,147.72,147.69,11.29946282]
[1746657151991,23.69347414,147.72,147.7,11.29946282]
[1746657153909,16.9239101,147.72,147.7,11.29946282]
[1746657155290,6.7691058,147.73,147.71,11.29946282]
[1746657155484,6.7691058,147.73,147.72,11.29946282]
[1746657156509,23.68706009,147.76,147.72,11.29946282]
[1746657157710,23.68706009,147.76,147.75,11.29946282]
[1746657157888,6.76773145,147.76,147.75,11.29946282]
[1746657159408,23.68391498,147.78,147.75,11.29946282]
[1746657160012,34.9833778,147.78,147.75,11.29946282]
[1746657160210,23.68391498,147.78,147.75,11.29946282]
[1746657161913,23.68064952,147.8,147.75,11.29946282]
[1746657162114,11.29946282,147.79,147.75,11.29946282]
[1746657162610,11.29946282,147.77,147.73,87.24162439]
[1746657162906,11.29946282,147.76,147.71,18.3387]
[1746657163097,11.29946282,147.76,147.72,11.29946282]
[1746657164011,23.68866327,147.75,147.72,11.29946282]
[1746657164617,23.68866327,147.75,147.73,11.29946282]
[1746657164823,6.7681895,147.75,147.74,11.29946282]
[1746657165819,23.68451707,147.78,147.74,11.29946282]
[1746657166117,23.68451707,147.78,147.75,11.29946282]
[1746657171101,23.68451707,147.78,147.76,11.29946282]
[1746657175130,11.29946282,147.77,147.73,0.14216157]
[1746657175327,11.29946282,147.77,147.73,11.44162439]
[1746657175634,6.76773145,147.76,147.73,11.44162439]
[1746657177528,6.76773145,147.76,147.75,11.29946282]
[1746657178301,11.29946282,147.79,147.75,11.29946282]
[1746657178506,68.80961166,147.8,147.75,11.29946282]
[1746657178704,68.80961166,147.8,147.78,11.29946282]
[1746657178705,6.76589986,147.8,147.78,11.29946282]
[1746657179124,6.76589986,147.8,147.79,11.29946282]
[1746657179910,23.67761919,147.82,147.79,11.29946282]
[1746657180526,23.67761919,147.82,147.8,11.29946282]
[1746657181741,16.91263475,147.82,147.8,11.29946282]
[1746657182139,16.91263475,147.82,147.78,0.14216157]
[1746657182326,16.91263475,147.82,147.79,11.29946282]
[1746657183442,23.67761919,147.82,147.79,11.29946282]
[1746657184545,16.91017316,147.84,147.81,11.29946282]
[1746657185122,28.20963598,147.84,147.8,11.29946282]
[1746657186141,34.97370524,147.84,147.8,11.29946282]
[1746657187247,23.67424242,147.84,147.81,11.29946282]
[1746657187622,6.76406926,147.84,147.82,11.29946282]